fUST/lending_fUST_20240919
["ID","MTS","AMOUNT","RATE_DAILY","PERIOD"]
[338567572,1726739440722,-500.0,0.00016438,2]
[338567573,1726739440731,-500.0,0.00016438,2]
[338567574,1726739440741,-500.0,0.00016438,2]
[338567575,1726739440750,-500.0,0.00016438,2]
[338567576,1726739440759,-500.0,0.00016438,2]
[338567577,1726739440768,-500.0,0.00016438,2]
[338567578,1726739440778,-500.0,0.00016438,2]
[338567579,1726739440787,-500.0,0.00016438,2]
[338567580,1726739440798,-500.0,0.00016438,2]
[338567581,1726739440808,-504.63365965,0.00016438,2]
[338567582,1726739440818,-1631.8,0.00016438,2]
[338567583,1726739440827,-1069.83,0.00016438,2]
[338567584,1726739440836,-500.0,0.00016438,2]
[338567585,1726739440845,-500.0,0.00016438,2]
[338567586,1726739440857,-500.0,0.00016438,2]
[338567587,1726739440866,-568.56,0.00016438,2]
[338567588,1726739440875,-500.0,0.00016438,2]
[338567589,1726739440884,-500.0,0.00016438,2]
[338567590,1726739440892,-712.88,0.00016438,2]
[338567591,1726739440902,-2789.7,0.00016438,2]
[338567592,1726739440911,-500.0,0.00016438,2]
[338567593,1726739440920,-500.0,0.00016438,2]
[338567594,1726739440929,-500.0,0.00016438,2]
[338567595,1726739440939,-917.09,0.00016438,2]
[338567596,1726739440948,-500.0,0.00016438,2]
[338567597,1726739440957,-562.63602959,0.00016438,2]
[338567598,1726739440966,-1025.05,0.00016438,2]
[338567599,1726739440976,-500.0,0.00016438,2]
[338567600,1726739440985,-510.72935629,0.00016438,2]
[338567601,1726739440994,-568.07,0.00016438,2]
[338567602,1726739441005,-500.0,0.00016438,2]
[338567603,1726739441014,-218.78350112,0.00016438,2]
[338567604,1726739441024,-500.0,0.00016438,2]
[338567605,1726739441034,-500.0,0.00016438,2]
[338567606,1726739441043,-536.84,0.00016438,2]
[338567607,1726739441053,-793.45,0.00016438,2]
[338567608,1726739441062,-1444.93,0.00016438,2]
[338567609,1726739441071,-957.72,0.00016438,2]
[338567610,1726739441081,-500.0,0.00016438,2]
[338567611,1726739441090,-923.62,0.00016438,2]
[338567612,1726739441100,-1203.94,0.00016438,2]
[338567613,1726739441110,-500.0,0.00016438,2]
[338567614,1726739441120,-500.0,0.00016438,2]
[338567615,1726739441129,-500.0,0.00016438,2]
[338567616,1726739441139,-553.21,0.00016438,2]
[338567617,1726739441148,-826.68,0.00016438,2]
[338567618,1726739441159,-500.0,0.00016438,2]
[338567619,1726739441168,-1089.16,0.00016438,2]
[338567620,1726739441178,-576.45,0.00016438,2]
[338567621,1726739441187,-500.0,0.00016438,2]
[338567622,1726739441196,-500.0,0.00016438,2]
[338567623,1726739441205,-500.0,0.00016438,2]
[338567624,1726739441215,-500.0,0.00016438,2]
[338567625,1726739441225,-500.0,0.00016438,2]
[338567626,1726739441234,-500.0,0.00016438,2]
[338567627,1726739441243,-500.0,0.00016438,2]
[338567628,1726739441253,-500.0,0.00016438,2]
[338567629,1726739441262,-500.0,0.00016438,2]
[338567630,1726739441272,-500.0,0.00016438,2]
[338567631,1726739441281,-2099.24,0.00016438,2]
[338567632,1726739441291,-864.18,0.00016438,2]
[338567633,1726739441300,-500.0,0.00016438,2]
[338567634,1726739441309,-1100.84,0.00016438,2]
[338567635,1726739441318,-500.0,0.00016438,2]
[338567636,1726739441328,-500.0,0.00016438,2]
[338567637,1726739441337,-563.89723577,0.00016438,2]
[338567638,1726739441347,-500.0,0.00016438,2]
[338567639,1726739441356,-500.0,0.00016438,2]
[338567640,1726739441366,-1457.96,0.00016438,2]
[338567641,1726739441376,-500.0,0.00016438,2]
[338567642,1726739441385,-500.0,0.00016438,2]
[338567643,1726739441395,-558.02173771,0.00016438,2]
[338567644,1726739441405,-1549.58,0.00016438,2]
[338567645,1726739441415,-500.0,0.00016438,2]
[338567646,1726739441425,-500.0,0.00016438,2]
[338567647,1726739441434,-1199.66,0.00016438,2]
[338567648,1726739441444,-678.68,0.00016438,2]
[338567649,1726739441453,-805.2,0.00016438,2]
[338567650,1726739441463,-284.3827466,0.00016438,2]
[338567651,1726739441472,-1557.42,0.00016438,2]
[338567652,1726739441482,-1377.09,0.00016438,2]
[338567653,1726739441491,-500.0,0.00016438,2]
[338567654,1726739441500,-500.0,0.00016438,2]
[338567655,1726739441519,-500.0,0.00016438,2]
[338567656,1726739441528,-500.0,0.00016438,2]
[338567657,1726739441538,-987.91,0.00016438,2]
[338567658,1726739441547,-500.0,0.00016438,2]
[338567659,1726739441556,-500.0,0.00016438,2]
[338567660,1726739441565,-933.28,0.00016438,2]
[338567661,1726739441575,-500.0,0.00016438,2]
[338567662,1726739441584,-500.0,0.00016438,2]
[338567663,1726739441593,-500.29110923,0.00016438,2]
[338567664,1726739441602,-964.43,0.00016438,2]
[338567665,1726739441611,-500.0,0.00016438,2]
[338567666,1726739441621,-1516.8,0.00016438,2]
[338567667,1726739441630,-1110.79,0.00016438,2]
[338567668,1726739441639,-817.72,0.00016438,2]
[338567669,1726739441649,-500.0,0.00016438,2]
[338567670,1726739441658,-500.0,0.00016438,2]
[338567671,1726739441667,-2343.82,0.00016438,2]
[338567672,1726739441677,-500.0,0.00016438,2]
[338567673,1726739441686,-500.0,0.00016438,2]
[338567674,1726739441695,-500.0,0.00016438,2]
[338567675,1726739441704,-500.0,0.00016438,2]
[338567676,1726739441714,-500.0,0.00016438,2]
[338567677,1726739441724,-500.0,0.00016438,2]
[338567678,1726739441733,-500.0,0.00016438,2]
[338567679,1726739441743,-500.0,0.00016438,2]
[338567680,1726739441752,-509.5149322,0.00016438,2]
[338567681,1726739441761,-500.0,0.00016438,2]
[338567682,1726739441771,-500.0,0.00016438,2]
[338567683,1726739441780,-2360.1,0.00016438,2]
[338567684,1726739441789,-1731.83,0.00016438,2]
[338567685,1726739441799,-500.0,0.00016438,2]
[338567686,1726739441808,-500.0,0.00016438,2]
[338567687,1726739441817,-880.03,0.00016438,2]
[338567688,1726739441826,-500.0,0.00016438,2]
[338567689,1726739441835,-652.74,0.00016438,2]
[338567690,1726739441845,-500.0,0.00016438,2]
[338567691,1726739441857,-500.0,0.00016438,2]
[338567692,1726739441867,-613.1,0.00016438,2]
[338567693,1726739441876,-500.0,0.00016438,2]
[338567694,1726739441885,-500.0,0.00016438,2]
[338567695,1726739441895,-500.0,0.00016438,2]
[338567696,1726739441905,-500.0,0.00016438,2]
[338567697,1726739441914,-885.45,0.00016438,2]
[338567698,1726739441923,-500.0,0.00016438,2]
[338567699,1726739441937,-500.0,0.00016438,2]
[338567700,1726739441947,-1330.87,0.00016438,2]
[338567701,1726739441956,-500.0,0.00016438,2]
[338567702,1726739441965,-500.0,0.00016438,2]
[338567703,1726739441974,-2829.71,0.00016438,2]
[338567704,1726739441984,-1018.6,0.00016438,2]
[338567705,1726739441993,-1268.66,0.00016438,2]
[338567706,1726739442003,-500.0,0.00016438,2]
[338567707,1726739442012,-1994.98,0.00016438,2]
[338567708,1726739442022,-500.0,0.00016438,2]
[338567709,1726739442031,-1142.71,0.00016438,2]
[338567710,1726739442041,-640.01,0.00016438,2]
[338567711,1726739442050,-500.0,0.00016438,2]
[338567712,1726739442059,-500.0,0.00016438,2]
[338567713,1726739442069,-500.0,0.00016438,2]
[338567714,1726739442078,-500.0,0.00016438,2]
[338567715,1726739442088,-500.0,0.00016438,2]
[338567716,1726739442097,-850.24,0.00016438,2]
[338567717,1726739442106,-500.0,0.00016438,2]
[338567718,1726739442116,-500.0,0.00016438,2]
[338567719,1726739442125,-500.0,0.00016438,2]
[338567720,1726739442134,-500.0,0.00016438,2]
[338567721,1726739442143,-588.28,0.00016438,2]
[338567722,1726739442152,-1167.6,0.00016438,2]
[338567723,1726739442161,-500.0,0.00016438,2]
[338567724,1726739442171,-500.0,0.00016438,2]
[338567725,1726739442180,-503.96153996,0.00016438,2]
[338567726,1726739442189,-500.0,0.00016438,2]
[338567727,1726739442199,-500.0,0.00016438,2]
[338567728,1726739442208,-500.0,0.00016438,2]
[338567729,1726739442218,-427.88488568,0.00016438,2]
[338567730,1726739442227,-672.92,0.00016438,2]
[338567731,1726739442238,-500.0,0.00016438,2]
[338567732,1726739442248,-500.0,0.00016438,2]
[338567733,1726739442258,-1038.41,0.00016438,2]
[338567734,1726739442268,-542.53,0.00016438,2]
[338567735,1726739442277,-500.0,0.00016438,2]
[338567736,1726739442287,-646.08,0.00016438,2]
[338567737,1726739442297,-537.8,0.00016438,2]
[338567738,1726739442306,-151.0,0.00016438,2]
[338567739,1726739442315,-500.0,0.00016438,2]
[338567740,1726739442324,-500.0,0.00016438,2]
[338567741,1726739442334,-567.16,0.00016438,2]
[338567742,1726739442343,-151.0,0.00016438,2]
[338567743,1726739442352,-500.0,0.00016438,2]
[338567744,1726739442362,-652.31,0.00016438,2]
[338567745,1726739442371,-151.0,0.00016438,2]
[338567746,1726739442380,-151.0,0.00016438,2]
[338567747,1726739442389,-500.0,0.00016438,2]
[338567748,1726739442399,-577.86,0.00016438,2]
[338567749,1726739442409,-1396.84,0.00016438,2]
[338567750,1726739442418,-896.63,0.00016438,2]
[338567751,1726739442428,-500.0,0.00016438,2]
[338567752,1726739442437,-500.0,0.00016438,2]
[338567753,1726739442446,-500.0,0.00016438,2]
[338567754,1726739442455,-3765.86,0.00016438,2]
[338567755,1726739442465,-151.0,0.00016438,2]
[338567756,1726739442474,-500.0,0.00016438,2]
[338567757,1726739442483,-500.0,0.00016438,2]
[338567758,1726739442493,-500.0,0.00016438,2]
[338567759,1726739442502,-500.0,0.00016438,2]
[338567760,1726739442512,-2023.52,0.00016438,2]
[338567761,1726739442522,-779.32,0.00016438,2]
[338567762,1726739442532,-499.07152592,0.00016438,2]
[338567763,1726739442541,-500.0,0.00016438,2]
[338567764,1726739442553,-545.27,0.00016438,2]
[338567765,1726739442562,-500.0,0.00016438,2]
[338567766,1726739442571,-800.8,0.00016438,2]
[338567767,1726739442580,-797.28,0.00016438,2]
[338567768,1726739442590,-500.0,0.00016438,2]
[338567769,1726739442599,-3259.54,0.00016438,2]
[338567770,1726739442609,-500.0,0.00016438,2]
[338567771,1726739442619,-630.54,0.00016438,2]
[338567772,1726739442629,-500.0,0.00016438,2]
[338567773,1726739442638,-500.0,0.00016438,2]
[338567774,1726739442647,-767.84,0.00016438,2]
[338567775,1726739442656,-500.0,0.00016438,2]
[338567776,1726739442665,-500.0,0.00016438,2]
[338567777,1726739442674,-500.0,0.00016438,2]
[338567778,1726739442683,-500.0,0.00016438,2]
[338567779,1726739442692,-746.26,0.00016438,2]
[338567780,1726739442702,-500.0,0.00016438,2]
[338567781,1726739442711,-500.0,0.00016438,2]
[338567782,1726739442720,-572.72,0.00016438,2]
[338567783,1726739442730,-500.0,0.00016438,2]
[338567784,1726739442739,-992.57,0.00016438,2]
[338567785,1726739442749,-500.0,0.00016438,2]
[338567786,1726739442759,-500.0,0.00016438,2]
[338567787,1726739442768,-500.0,0.00016438,2]
[338567788,1726739442778,-500.0,0.00016438,2]
[338567789,1726739442788,-232.55147581,0.00016438,2]
[338567790,1726739442797,-500.0,0.00016438,2]
[338567791,1726739442807,-496.63414061,0.00016438,2]
[338567792,1726739442816,-500.0,0.00016438,2]
[338567793,1726739442825,-2051.78,0.00016438,2]
[338567794,1726739442834,-920.44,0.00016438,2]
[338567795,1726739442844,-500.0,0.00016438,2]
[338567796,1726739442856,-500.0,0.00016438,2]
[338567797,1726739442866,-1192.4,0.00016438,2]
[338567798,1726739442875,-1732.35,0.00016438,2]
[338567799,1726739442884,-500.0,0.00016438,2]
[338567800,1726739442894,-500.0,0.00016438,2]
[338567801,1726739442903,-500.0,0.00016438,2]
[338567802,1726739442913,-536.74,0.00016438,2]
[338567803,1726739442922,-151.96863355,0.00016438,2]
[338567804,1726739442934,-183.327853,0.00016438,2]
[338567805,1726739442943,-500.0,0.00016438,2]
[338567806,1726739442954,-2675.83,0.00016438,2]
[338567807,1726739442964,-500.0,0.00016438,2]
[338567808,1726739442973,-183.327853,0.00016438,2]
[338567809,1726739442983,-1315.48,0.00016438,2]
[338567810,1726739442992,-756.355347,0.00016438,2]
[338567811,1726739443001,-1556.85,0.00016438,2]
[338567812,1726739443011,-500.0,0.00016438,2]
[338567813,1726739443021,-514.50119356,0.00016438,2]
[338567814,1726739443031,-756.355347,0.00016438,2]
[338567815,1726739443040,-500.0,0.00016438,2]
[338567816,1726739443050,-655.33,0.00016438,2]
[338567817,1726739443059,-500.0,0.00016438,2]
[338567818,1726739443068,-500.47,0.00016438,2]
[338567820,1726739443078,-1084.53,0.00016438,2]
[338567823,1726739443087,-953.98,0.00016438,2]
[338567826,1726739443097,-1056.62,0.00016438,2]
[338567828,1726739443106,-500.0,0.00016438,2]
[338567831,1726739443116,-500.0,0.00016438,2]
[338567833,1726739443125,-620.97,0.00016438,2]
[338567835,1726739443135,-151.0,0.00016438,2]
[338567837,1726739443144,-500.0,0.00016438,2]
[338567838,1726739443153,-531.23,0.00016438,2]
[338567839,1726739443162,-2352.76,0.00016438,2]
[338567841,1726739443171,-1317.99,0.00016438,2]
[338567844,1726739443181,-500.0,0.00016438,2]
[338567846,1726739443190,-328.962833,0.00016438,2]
[338567848,1726739443200,-500.0,0.00016438,2]
[338567850,1726739443209,-500.0,0.00016438,2]
[338567852,1726739443219,-310.56825,0.00016438,2]
[338567854,1726739443229,-500.0,0.00016438,2]
[338567856,1726739443238,-328.962833,0.00016438,2]
[338567857,1726739443248,-500.0,0.00016438,2]
[338567859,1726739443259,-522.58,0.00016438,2]
[338567861,1726739443268,-310.56825,0.00016438,2]
[338567863,1726739443277,-500.0,0.00016438,2]
[338567865,1726739443287,-1575.09,0.00016438,2]
[338567867,1726739443296,-500.0,0.00016438,2]
[338567869,1726739443305,-151.0,0.00016438,2]
[338567871,1726739443315,-1117.05,0.00016438,2]
[338567873,1726739443324,-897.52,0.00016438,2]
[338567875,1726739443333,-500.0,0.00016438,2]
[338567877,1726739443343,-500.0,0.00016438,2]
[338567878,1726739443352,-500.0,0.00016438,2]
[338567880,1726739443362,-889.78,0.00016438,2]
[338567881,1726739443372,-500.0,0.00016438,2]
[338567882,1726739443382,-959.5,0.00016438,2]
[338567883,1726739443391,-1241.74,0.00016438,2]
[338567884,1726739443400,-696.32,0.00016438,2]
[338567885,1726739443410,-500.0,0.00016438,2]
[338567886,1726739443420,-1465.29,0.00016438,2]
[338567887,1726739443594,-923.25,0.00016438,2]
[338567888,1726739443610,-925.757886,0.00016438,2]
[338567889,1726739443619,-500.0,0.00016438,2]
[338567890,1726739443631,-500.0,0.00016438,2]
[338567891,1726739443640,-925.757886,0.00016438,2]
[338567892,1726739443650,-346.92,0.00016438,2]
[338567893,1726739443659,-500.0,0.00016438,2]
[338567894,1726739443669,-243.17,0.00016438,2]
[338567895,1726739443678,-501.0997951,0.00016438,2]
[338567896,1726739443687,-500.0,0.00016438,2]
[338567897,1726739443697,-500.0,0.00016438,2]
[338567898,1726739443706,-515.04,0.00016438,2]
[338567899,1726739443716,-972.51,0.00016438,2]
[338567900,1726739443726,-500.0,0.00016438,2]
[338567901,1726739443735,-1065.94,0.00016438,2]
[338567902,1726739443745,-500.0,0.00016438,2]
[338567903,1726739443755,-694.42,0.00016438,2]
[338567904,1726739443764,-534.15673478,0.00016438,2]
[338567905,1726739443773,-500.0,0.00016438,2]
[338567906,1726739443783,-777.38,0.00016438,2]
[338567907,1726739443793,-500.0,0.00016438,2]
[338567908,1726739443802,-500.0,0.00016438,2]
[338567909,1726739443811,-500.229989,0.00016438,2]
[338567910,1726739443821,-151.0,0.00016438,2]
[338567911,1726739443830,-500.0,0.00016438,2]
[338567912,1726739443839,-962.98,0.00016438,2]
[338567913,1726739443849,-500.0,0.00016438,2]
[338567914,1726739443863,-500.0,0.00016438,2]
[338567915,1726739443872,-500.0,0.00016438,2]
[338567917,1726739443881,-500.0,0.00016438,2]
[338567918,1726739443891,-2156.7,0.00016438,2]
[338567919,1726739443901,-500.229989,0.00016438,2]
[338567920,1726739443910,-709.43,0.00016438,2]
[338567921,1726739443919,-1459.536,0.00016438,2]
[338567922,1726739443928,-151.0,0.00016438,2]
[338567923,1726739443938,-1459.536,0.00016438,2]
[338567925,1726739443947,-500.0,0.00016438,2]
[338567927,1726739443956,-500.0,0.00016438,2]
[338567928,1726739443966,-518.83,0.00016438,2]
[338567930,1726739443975,-1978.31,0.00016438,2]
[338567932,1726739443985,-500.0,0.00016438,2]
[338567934,1726739443994,-734.16,0.00016438,2]
[338567935,1726739444004,-734.16,0.00016438,2]
[338567936,1726739444013,-734.16,0.00016438,2]
[338567937,1726739444023,-734.16,0.00016438,2]
[338567938,1726739444032,-500.0,0.00016438,2]
[338567939,1726739444042,-734.16,0.00016438,2]
[338567940,1726739444051,-734.16,0.00016438,2]
[338567941,1726739444060,-734.16,0.00016438,2]
[338567942,1726739444070,-734.16,0.00016438,2]
[338567943,1726739444079,-734.16,0.00016438,2]
[338567944,1726739444088,-511.26,0.00016438,2]
[338567945,1726739444098,-500.0,0.00016438,2]
[338567946,1726739444108,-734.16,0.00016438,2]
[338567947,1726739444118,-500.0,0.00016438,2]
[338567948,1726739444127,-500.0,0.00016438,2]
[338567949,1726739444137,-843.87,0.00016438,2]
[338567950,1726739444146,-500.0,0.00016438,2]
[338567951,1726739444156,-500.0,0.00016438,2]
[338567952,1726739444166,-500.0,0.00016438,2]
[338567953,1726739444175,-523.24158057,0.00016438,2]
[338567954,1726739444186,-500.0,0.00016438,2]
[338567955,1726739444195,-500.0,0.00016438,2]
[338567956,1726739444205,-918.24,0.00016438,2]
[338567957,1726739444215,-988.49,0.00016438,2]
[338567958,1726739444224,-500.0,0.00016438,2]
[338567959,1726739444234,-500.0,0.00016438,2]
[338567960,1726739444243,-500.0,0.00016438,2]
[338567961,1726739444254,-500.0,0.00016438,2]
[338567962,1726739444263,-500.0,0.00016438,2]
[338567963,1726739444272,-500.0,0.00016438,2]
[338567964,1726739444281,-547.84,0.00016438,2]
[338567965,1726739444291,-500.0,0.00016438,2]
[338567966,1726739444300,-1684.19,0.00016438,2]
[338567967,1726739444310,-500.0,0.00016438,2]
[338567968,1726739444320,-1226.99,0.00016438,2]
[338567969,1726739444329,-500.0,0.00016438,2]
[338567970,1726739444338,-500.0,0.00016438,2]
[338567971,1726739444347,-619.37,0.00016438,2]
[338567972,1726739444357,-500.0,0.00016438,2]
[338567973,1726739444367,-505.76472352,0.00016438,2]
[338567974,1726739444376,-500.0,0.00016438,2]
[338567975,1726739444385,-793.11,0.00016438,2]
[338567976,1726739444394,-500.0,0.00016438,2]
[338567977,1726739444404,-500.0,0.00016438,2]
[338567978,1726739444414,-500.0,0.00016438,2]
[338567979,1726739444423,-500.0,0.00016438,2]
[338567980,1726739444433,-4080.95,0.00016438,2]
[338567981,1726739444443,-1533.79,0.00016438,2]
[338567982,1726739444452,-500.0,0.00016438,2]
[338567983,1726739444461,-500.0,0.00016438,2]
[338567984,1726739444471,-500.0,0.00016438,2]
[338567985,1726739444480,-500.0,0.00016438,2]
[338567986,1726739444489,-833.33,0.00016438,2]
[338567987,1726739444499,-500.0,0.00016438,2]
[338567988,1726739444509,-500.0,0.00016438,2]
[338567989,1726739444518,-532.79,0.00016438,2]
[338567990,1726739444528,-992.43,0.00016438,2]
[338567991,1726739444537,-337.10488405,0.00016438,2]
[338567992,1726739444547,-434.420631,0.00016438,2]
[338567993,1726739444556,-724.2,0.00016438,2]
[338567994,1726739444566,-500.0,0.00016438,2]
[338567995,1726739444575,-332.739636,0.00016438,2]
[338567996,1726739444584,-500.0,0.00016438,2]
[338567997,1726739444594,-500.0,0.00016438,2]
[338567998,1726739444603,-151.0,0.00016438,2]
[338567999,1726739444614,-500.0,0.00016438,2]
[338568000,1726739444623,-500.0,0.00016438,2]
[338568001,1726739444632,-151.0,0.00016438,2]
[338568002,1726739444642,-500.0,0.00016438,2]
[338568003,1726739444651,-434.420631,0.00016438,2]
[338568004,1726739444660,-500.0,0.00016438,2]
[338568005,1726739444670,-500.0,0.00016438,2]
[338568006,1726739444680,-332.739636,0.00016438,2]
[338568007,1726739444690,-500.0,0.00016438,2]
[338568008,1726739444699,-500.0,0.00016438,2]
[338568009,1726739444708,-913.85,0.00016438,2]
[338568010,1726739444717,-500.0,0.00016438,2]
[338568011,1726739444726,-500.0,0.00016438,2]
[338568012,1726739444735,-500.0,0.00016438,2]
[338568013,1726739444744,-641.4,0.00016438,2]
[338568014,1726739444754,-500.0,0.00016438,2]
[338568015,1726739444774,-151.0,0.00016438,2]
[338568016,1726739444783,-500.0,0.00016438,2]
[338568017,1726739444793,-500.0,0.00016438,2]
[338568018,1726739444802,-833.47,0.00016438,2]
[338568019,1726739444811,-500.0,0.00016438,2]
[338568020,1726739444821,-500.0,0.00016438,2]
[338568021,1726739444830,-758.99,0.00016438,2]
[338568022,1726739444840,-151.0,0.00016438,2]
[338568023,1726739444850,-500.0,0.00016438,2]
[338568024,1726739444864,-589.81121707,0.00016438,2]
[338568025,1726739444874,-500.0,0.00016438,2]
[338568026,1726739444884,-500.0,0.00016438,2]
[338568027,1726739444895,-500.0,0.00016438,2]
[338568028,1726739444905,-529.26753828,0.00016438,2]
[338568029,1726739444914,-660.92,0.00016438,2]
[338568030,1726739444924,-500.0,0.00016438,2]
[338568031,1726739444936,-500.0,0.00016438,2]
[338568032,1726739444946,-500.0,0.00016438,2]
[338568033,1726739444956,-500.0,0.00016438,2]
[338568034,1726739444966,-500.0,0.00016438,2]
[338568035,1726739444976,-555.01,0.00016438,2]
[338568036,1726739444985,-500.0,0.00016438,2]
[338568037,1726739444995,-500.79052843,0.00016438,2]
[338568038,1726739445006,-500.0,0.00016438,2]
[338568039,1726739445016,-500.0,0.00016438,2]
[338568040,1726739445025,-151.0,0.00016438,2]
[338568041,1726739445035,-993.05,0.00016438,2]
[338568042,1726739445044,-500.0,0.00016438,2]
[338568043,1726739445054,-500.0,0.00016438,2]
[338568044,1726739445063,-610.59,0.00016438,2]
[338568045,1726739445073,-1552.609418,0.00016438,2]
[338568046,1726739445082,-212.743537,0.00016438,2]
[338568047,1726739445092,-500.0,0.00016438,2]
[338568048,1726739445101,-1552.609418,0.00016438,2]
[338568049,1726739445111,-212.743537,0.00016438,2]
[338568050,1726739445121,-500.0,0.00016438,2]
[338568051,1726739445130,-500.0,0.00016438,2]
[338568052,1726739445140,-500.0,0.00016438,2]
[338568053,1726739445149,-733.61,0.00016438,2]
[338568054,1726739445159,-558.17,0.00016438,2]
[338568055,1726739445169,-500.0,0.00016438,2]
[338568056,1726739445178,-170.937162,0.00016438,2]
[338568057,1726739445187,-500.0,0.00016438,2]
[338568058,1726739445196,-1052.65,0.00016438,2]
[338568059,1726739445206,-1871.05,0.00016438,2]
[338568060,1726739445216,-581.21,0.00016438,2]
[338568061,1726739445228,-657.458498,0.00016438,2]
[338568062,1726739445238,-1331.576687,0.00016438,2]
[338568063,1726739445248,-905.66,0.00016438,2]
[338568064,1726739445258,-657.458498,0.00016438,2]
[338568065,1726739445268,-500.0,0.00016438,2]
[338568066,1726739445278,-1331.576687,0.00016438,2]
[338568067,1726739445288,-500.0,0.00016438,2]
[338568068,1726739445298,-500.0,0.00016438,2]
[338568069,1726739445309,-500.0,0.00016438,2]
[338568070,1726739445319,-500.0,0.00016438,2]
[338568071,1726739445328,-500.0,0.00016438,2]
[338568072,1726739445338,-1793.92,0.00016438,2]
[338568073,1726739445349,-500.0,0.00016438,2]
[338568074,1726739445359,-500.0,0.00016438,2]
[338568075,1726739445369,-545.29,0.00016438,2]
[338568076,1726739445379,-500.0,0.00016438,2]
[338568077,1726739445389,-596.48,0.00016438,2]
[338568078,1726739445398,-500.0,0.00016438,2]
[338568079,1726739445407,-500.0,0.00016438,2]
[338568080,1726739445417,-500.0,0.00016438,2]
[338568081,1726739445427,-151.0,0.00016438,2]
[338568082,1726739445438,-917.15,0.00016438,2]
[338568083,1726739445447,-500.0,0.00016438,2]
[338568084,1726739445457,-500.0,0.00016438,2]
[338568085,1726739445466,-949.34,0.00016438,2]
[338568086,1726739445475,-380.84,0.00016438,2]
[338568087,1726739445485,-500.0,0.00016438,2]
[338568088,1726739445495,-500.0,0.00016438,2]
[338568089,1726739445506,-500.0,0.00016438,2]
[338568090,1726739445515,-500.0,0.00016438,2]
[338568091,1726739445525,-500.0,0.00016438,2]
[338568092,1726739445535,-500.0,0.00016438,2]
[338568093,1726739445545,-604.47,0.00016438,2]
[338568094,1726739445554,-768.54,0.00016438,2]
[338568095,1726739445563,-514.48,0.00016438,2]
[338568096,1726739445573,-500.0,0.00016438,2]
[338568097,1726739445582,-500.0,0.00016438,2]
[338568098,1726739445592,-992.26,0.00016438,2]
[338568099,1726739445601,-1506.86,0.00016438,2]
[338568100,1726739445611,-500.0,0.00016438,2]
[338568101,1726739445621,-500.0,0.00016438,2]
[338568102,1726739445630,-165.51306,0.00016438,2]
[338568103,1726739445640,-378.638792,0.00016438,2]
[338568104,1726739445650,-505.95510883,0.00016438,2]
[338568105,1726739445659,-500.0,0.00016438,2]
[338568106,1726739445669,-56270.92,0.00016438,2]
[338568107,1726739445678,-378.638792,0.00016438,2]
[338568108,1726739445688,-165.51306,0.00016438,2]